bitfinex-derivatives/quotes_BTCF0:USTF0_20241010
["timestamp","ask_amount","ask_price","bid_price","bid_amount"]
[1728580841303,0.083135,60201.0,60200.0,0.083135]
[1728580841505,0.083142,60195.0,60194.0,0.001]
[1728580841811,0.083149,60190.0,60189.0,0.08315]
[1728580842809,0.083153,60187.0,60186.0,0.443954]
[1728580844016,0.1195,60189.0,60188.0,0.083151]
[1728580844209,0.38617474,60189.0,60188.0,0.05763768]
[1728580844415,0.18352474,60189.0,60188.0,0.05763768]
[1728580844610,0.12388349,60189.0,60188.0,0.05763768]
[1728580845219,0.12788349,60189.0,60188.0,0.05763768]
[1728580845816,0.19252474,60189.0,60188.0,0.05763768]
[1728580846207,0.13288349,60189.0,60188.0,0.05763768]
[1728580846821,0.12788349,60189.0,60188.0,0.06363768]
[1728580847014,0.21103349,60189.0,60188.0,0.06363768]
[1728580847213,0.27067474,60189.0,60188.0,0.06363768]
[1728580847419,0.26767474,60189.0,60188.0,0.06363768]
[1728580847619,0.26967474,60189.0,60188.0,0.06363768]
[1728580847838,0.18652474,60189.0,60188.0,0.06363768]
[1728580848018,0.21003349,60189.0,60188.0,0.06363768]
[1728580848209,0.26767474,60189.0,60188.0,0.06363768]
[1728580848414,0.26967474,60189.0,60188.0,0.06363768]
[1728580848615,0.26917474,60189.0,60188.0,0.06363768]
[1728580849122,0.18502474,60189.0,60188.0,0.05863768]
[1728580849531,0.18902474,60189.0,60188.0,0.05763768]
[1728580849827,0.27217474,60189.0,60188.0,0.05763768]
[1728580850235,0.27017474,60189.0,60188.0,0.05763768]
[1728580851117,0.27217474,60189.0,60188.0,0.05763768]
[1728580852326,0.08915,60189.0,60188.0,0.05763768]
[1728580853925,0.08915,60189.0,60185.0,0.06630905]
[1728580854128,0.08915,60189.0,60182.0,0.29]
[1728580854129,0.083154,60186.0,60182.0,0.06630905]
[1728580854330,0.083154,60186.0,60182.0,0.083158]
[1728580854331,0.083158,60183.0,60182.0,0.083158]
[1728580854527,0.083158,60183.0,60178.0,0.443964]
[1728580854528,0.083164,60179.0,60178.0,0.443964]
[1728580854726,0.083164,60179.0,60178.0,0.410631]
[1728580855137,0.083164,60179.0,60178.0,0.3608]
[1728580855832,0.084164,60179.0,60178.0,0.3678]
[1728580856624,0.084164,60179.0,60178.0,0.450965]
[1728580856827,0.001,60179.0,60178.0,0.450965]
[1728580857327,0.001,60179.0,60178.0,0.458965]
[1728580858236,0.084164,60179.0,60178.0,0.3758]
[1728580858832,0.444964,60179.0,60178.0,0.015]
[1728580859032,0.083169,60175.0,60167.0,0.443979]
[1728580859375,0.083183,60165.0,60164.0,0.083583]
[1728580859928,0.083183,60165.0,60164.0,0.1333743]
[1728580860131,0.083183,60165.0,60164.0,0.0501913]
[1728580860435,0.083183,60165.0,60164.0,0.0004]
[1728580860631,0.083183,60165.0,60164.0,0.0144]
[1728580860834,0.083183,60165.0,60164.0,0.1473763]
[1728580861028,0.083183,60165.0,60164.0,0.097585]
[1728580861627,0.084183,60165.0,60164.0,0.0164]
[1728580862223,1.182823,60165.0,60164.0,0.0164]
[1728580862639,1.182823,60165.0,60164.0,0.0104]
[1728580862640,1.183823,60165.0,60164.0,0.0104]
[1728580863663,0.583823,60165.0,60164.0,0.0104]
[1728580863826,0.085183,60165.0,60164.0,0.093585]
[1728580866639,0.085183,60165.0,60164.0,0.0104]
[1728580867233,0.26880162,60165.0,60164.0,0.083185]
[1728580867538,0.38908575,60165.0,60164.0,0.083185]
[1728580867741,0.20912986,60165.0,60164.0,0.083185]
[1728580868042,0.26879986,60165.0,60164.0,0.083185]
[1728580868237,0.26879986,60165.0,60164.0,0.05902352]
[1728580870145,0.26879978,60165.0,60164.0,0.05902352]
[1728580870348,0.18561678,60165.0,60164.0,0.05902352]
[1728580870641,0.21326724,60165.0,60164.0,0.41982352]
[1728580871142,0.08520487,60165.0,60164.0,0.41982352]
[1728580871441,0.07487954,60165.0,60164.0,0.41982352]
[1728580871640,0.03413755,60165.0,60164.0,0.41982352]
[1728580871843,0.12594686,60165.0,60164.0,0.41982352]
[1728580872045,0.20912986,60165.0,60164.0,0.3608]
[1728580872234,0.20912986,60165.0,60164.0,0.443985]
[1728580872540,0.20912986,60165.0,60164.0,0.3608]
[1728580873942,0.20912986,60165.0,60164.0,0.443985]
[1728580874540,0.085183,60165.0,60164.0,0.443985]
[1728580875741,0.085183,60165.0,60164.0,0.3608]
[1728580875936,0.083187,60162.0,60161.0,0.083188]
[1728580876550,0.0004,60162.0,60159.0,0.3608]
[1728580876851,0.0004,60162.0,60159.0,0.443991]
[1728580876852,0.08359,60160.0,60159.0,0.443991]
[1728580877240,0.08359,60160.0,60159.0,0.3608]
[1728580877440,0.0004,60160.0,60159.0,0.443992]
[1728580877746,0.0004,60162.0,60161.0,0.083189]
[1728580877747,0.083588,60162.0,60161.0,0.083189]
[1728580878243,0.084588,60162.0,60161.0,0.083189]
[1728580878649,0.083588,60162.0,60161.0,0.083189]
[1728580878839,0.084588,60162.0,60161.0,0.091189]
[1728580879272,0.085588,60162.0,60161.0,0.091189]
[1728580879435,0.0024,60162.0,60161.0,0.091189]
[1728580880752,0.085587,60162.0,60161.0,0.091189]
[1728580880941,0.0024,60162.0,60161.0,0.091189]
[1728580882649,0.0752717,60162.0,60161.0,0.091189]
[1728580882849,0.03453409,60162.0,60161.0,0.091189]
[1728580883256,0.03453409,60162.0,60161.0,1.189829]
[1728580883750,0.03453409,60162.0,60161.0,0.899829]
[1728580884343,0.14885437,60162.0,60161.0,0.899829]
[1728580884547,0.14885437,60162.0,60161.0,1.499829]
[1728580885352,0.03453409,60162.0,60161.0,1.499829]
[1728580886566,0.03453063,60162.0,60161.0,1.499829]
[1728580887754,0.01913063,60162.0,60161.0,1.499829]
[1728580887954,0.11432028,60168.0,60161.0,1.500229]
[1728580888146,0.13036527,60173.0,60167.0,0.3608]
[1728580888147,0.11432028,60169.0,60167.0,0.3608]
[1728580888353,0.13036527,60173.0,60172.0,0.083174]
[1728580888653,0.04072958,60173.0,60172.0,0.273174]
[1728580889247,0.11457793,60173.0,60172.0,0.273174]
[1728580889456,0.083163,60180.0,60179.0,0.083164]
[1728580889861,0.00249329,60181.0,60180.0,0.083163]
[1728580890251,0.27565429,60181.0,60177.0,0.3608]
[1728580890451,0.083165,60178.0,60177.0,0.3608]
[1728580891058,0.083167,60177.0,60176.0,0.083167]
[1728580892160,0.084167,60177.0,60176.0,0.083167]
[1728580892352,0.083173,60173.0,60169.0,0.083178]
[1728580892548,0.083173,60173.0,60172.0,0.083174]
[1728580892749,0.083177,60170.0,60169.0,0.083177]
[1728580893155,0.083178,60169.0,60168.0,0.3608]
[1728580893351,0.317078,60169.0,60168.0,0.3608]
[1728580893954,0.317078,60169.0,60162.0,0.083187]
[1728580894154,0.083183,60166.0,60163.0,0.083185]
[1728580894557,0.083183,60166.0,60165.0,0.083183]
[1728580894910,0.083183,60166.0,60161.0,0.0004]
[1728580894911,0.2339,60169.0,60161.0,0.0004]
[1728580895164,0.083185,60164.0,60162.0,0.083187]
[1728580895366,0.083185,60164.0,60163.0,0.083186]
[1728580896162,0.001,60166.0,60161.0,0.0004]
[1728580896350,0.083187,60162.0,60161.0,0.0004]
[1728580897158,0.083187,60162.0,60161.0,0.0014]
[1728580897477,0.083187,60162.0,60149.0,0.083204]
[1728580897478,0.083204,60150.0,60149.0,0.083204]
[1728580897656,0.17541415,60150.0,60149.0,0.083204]
[1728580897965,0.20755569,60150.0,60149.0,0.083204]
[1728580898155,0.18402399,60150.0,60149.0,0.083204]
[1728580898357,0.12435169,60150.0,60149.0,0.083204]
[1728580899068,0.12535169,60150.0,60149.0,0.084204]
[1728580899259,0.12635169,60150.0,60149.0,0.093204]
[1728580899466,0.12635169,60150.0,60149.0,1.191964]
[1728580899964,0.07527549,60150.0,60149.0,1.191964]
[1728580900161,0.12633997,60150.0,60149.0,1.191964]
[1728580900356,0.25525624,60150.0,60149.0,1.191964]
[1728580900552,0.24919519,60150.0,60149.0,1.481964]
[1728580900753,0.21286941,60168.0,60157.0,0.083193]
[1728580900951,0.21286941,60168.0,60167.0,0.37318]
[1728580901263,0.05966416,60168.0,60167.0,0.68318]
[1728580901462,0.18001088,60168.0,60167.0,0.68318]
[1728580901962,0.18001088,60168.0,60167.0,0.37318]
[1728580902265,0.08315,60190.0,60169.0,0.083178]
[1728580902266,0.18001088,60170.0,60169.0,0.083178]
[1728580902452,0.00249329,60181.0,60180.0,0.083163]
[1728580902864,0.06214786,60181.0,60180.0,0.083163]
[1728580903365,0.14530886,60181.0,60180.0,0.083163]
[1728580904564,0.00249329,60181.0,60180.0,0.083163]
[1728580905066,0.01149329,60181.0,60180.0,0.084163]
[1728580905961,0.01949329,60181.0,60180.0,0.085163]
[1728580906157,0.01909329,60181.0,60180.0,0.085163]
[1728580907413,0.01109329,60181.0,60180.0,0.084163]
[1728580907871,0.00209329,60181.0,60180.0,0.083163]
[1728580908074,0.00909329,60181.0,60180.0,0.084163]
[1728580908570,0.00809329,60181.0,60180.0,0.084163]
[1728580909166,0.09225429,60181.0,60180.0,0.084163]
[1728580909665,0.65589329,60181.0,60169.0,0.36917025]
[1728580909862,0.083171,60174.0,60173.0,0.083172]
[1728580910470,0.29,60175.0,60169.0,0.36917025]
[1728580910670,0.373169,60175.0,60174.0,0.083171]
[1728580910866,0.083169,60175.0,60174.0,0.083171]
[1728580912169,0.086169,60175.0,60174.0,0.083171]
[1728580913575,0.003,60175.0,60174.0,0.443971]
[1728580914178,0.005,60175.0,60174.0,0.733971]
[1728580914868,0.004,60175.0,60174.0,0.742971]
[1728580915074,0.001,60175.0,60174.0,0.742971]
[1728580915467,0.001,60175.0,60174.0,1.841531]
[1728580915468,1e-06,60175.0,60174.0,1.841531]
[1728580915664,0.01314288,60187.0,60186.0,0.083154]
[1728580915867,0.01314288,60187.0,60181.0,0.08316]
[1728580915868,0.084169,60175.0,60174.0,0.016]
[1728580916067,0.444969,60175.0,60174.0,0.016]
[1728580916664,0.445369,60175.0,60174.0,0.016]
[1728580916863,0.735369,60175.0,60174.0,0.016]
[1728580918077,0.083174,60172.0,60167.0,0.08318]
[1728580918277,0.6532,60175.0,60169.0,0.083176]
[1728580918471,0.083174,60172.0,60170.0,0.083175]
[1728580918672,0.083174,60172.0,60171.0,0.083175]
[1728580919676,0.04156039,60172.0,60171.0,0.083175]
[1728580919862,0.3632,60175.0,60169.0,0.08276138]
[1728580920067,0.3632,60175.0,60173.0,0.06631466]
[1728580920271,0.3612,60175.0,60174.0,0.083171]
[1728580921377,0.444369,60175.0,60174.0,0.083171]
[1728580921674,0.3612,60175.0,60174.0,0.14948566]
[1728580922472,0.447369,60175.0,60174.0,0.14948566]
[1728580922975,0.447369,60175.0,60174.0,0.083171]
[1728580923367,0.447369,60175.0,60174.0,0.14948566]
[1728580923570,0.449369,60175.0,60174.0,0.14948566]
[1728580923873,0.3662,60175.0,60174.0,0.14948566]
[1728580924672,0.449369,60175.0,60174.0,0.14948566]
[1728580924974,0.3662,60175.0,60174.0,0.14948566]
[1728580925168,0.3662,60175.0,60174.0,0.083171]
[1728580926366,0.449369,60175.0,60174.0,0.083171]
[1728580926564,0.3662,60175.0,60174.0,0.083171]
[1728580926882,0.3612,60175.0,60174.0,0.085171]
[1728580927175,0.3608,60180.0,60174.0,0.2165614]
[1728580927377,0.3608,60180.0,60179.0,0.083164]
[1728580928275,0.3608,60180.0,60179.0,0.20553863]
[1728580928674,0.5508,60180.0,60179.0,0.20553863]
[1728580928881,0.633963,60180.0,60179.0,0.20534695]
[1728580929081,0.634963,60180.0,60179.0,0.20534695]
[1728580929316,0.634963,60180.0,60178.0,0.08304317]
[1728580929481,0.634963,60180.0,60179.0,0.08304317]
[1728580929482,0.444963,60180.0,60179.0,0.08304317]
[1728580929674,0.444963,60180.0,60179.0,0.28872819]
[1728580929874,0.444963,60180.0,60179.0,0.20568502]
[1728580930068,0.443963,60180.0,60179.0,0.20568502]
[1728580930274,0.3668,60180.0,60179.0,0.20568502]
[1728580930783,0.006,60180.0,60179.0,0.26856692]
[1728580930984,0.447963,60180.0,60179.0,0.12252102]
[1728580931181,0.452963,60180.0,60179.0,0.12252102]
[1728580931779,0.447963,60180.0,60179.0,0.12252102]
[1728580931975,0.443963,60180.0,60179.0,0.21068502]
[1728580932179,0.449963,60180.0,60179.0,0.21068502]
[1728580932575,0.3668,60180.0,60179.0,0.21068502]
[1728580933085,0.3688,60180.0,60179.0,0.21068502]
[1728580933275,0.3688,60180.0,60179.0,0.33468502]
[1728580933475,0.451963,60180.0,60179.0,0.33468502]
[1728580933679,0.456963,60180.0,60179.0,0.33068502]
[1728580933888,0.3738,60180.0,60179.0,0.33068502]
[1728580934180,0.456963,60180.0,60179.0,0.33068502]
[1728580934381,0.451963,60180.0,60179.0,0.33068502]
[1728580934686,0.002,60180.0,60179.0,0.207164]
[1728580935000,0.008,60180.0,60179.0,0.398164]
[1728580935179,0.008,60180.0,60179.0,0.896684]
[1728580935379,0.008,60180.0,60179.0,1.496684]
[1728580935881,0.006,60180.0,60179.0,0.895684]
[1728580936277,0.009,60180.0,60179.0,0.895684]
[1728580936482,0.005,60180.0,60179.0,0.898684]
[1728580936681,0.005,60180.0,60179.0,0.400164]
[1728580937075,0.005,60180.0,60179.0,0.92468552]
[1728580937283,0.633953,60187.0,60186.0,0.083154]
[1728580937478,0.3608,60187.0,60186.0,0.083154]
[1728580937782,0.3608,60193.0,60192.0,0.083146]
[1728580938575,0.00249264,60195.0,60192.0,0.083146]
[1728580938782,0.00249264,60195.0,60194.0,0.273143]
[1728580939177,0.00249264,60195.0,60193.0,0.369]
[1728580939178,0.443937,60199.0,60198.0,0.083138]
[1728580939385,0.3608,60199.0,60198.0,0.083138]
[1728580939729,0.3608,60199.0,60198.0,0.273138]
[1728580940380,0.3608,60199.0,60198.0,0.274138]
[1728580940381,0.008,60199.0,60198.0,0.274138]
[1728580941083,0.008,60199.0,60198.0,1.133298]
[1728580941276,0.022,60199.0,60198.0,1.134298]
[1728580942292,0.022,60199.0,60198.0,1.444298]
[1728580942484,0.022,60199.0,60198.0,0.945938]
[1728580942682,0.022,60199.0,60198.0,1.56534014]
[1728580942998,0.011,60199.0,60198.0,1.06698014]
[1728580943689,0.011,60199.0,60198.0,2.16534014]
[1728580944208,0.3608,60206.0,60205.0,0.083128]
[1728580944386,0.3608,60216.0,60215.0,0.083114]
[1728580945487,0.3748,60216.0,60215.0,0.084114]
[1728580945686,0.3748,60216.0,60215.0,0.085114]
[1728580945984,0.3743,60216.0,60215.0,0.085114]
[1728580947893,0.457413,60216.0,60215.0,0.085114]
[1728580949697,0.097113,60216.0,60215.0,0.085114]
[1728580950004,0.014,60216.0,60215.0,0.085114]
[1728580950290,0.097113,60216.0,60215.0,0.085114]
[1728580950887,0.014,60216.0,60215.0,0.085114]
[1728580951487,0.097113,60216.0,60215.0,0.085114]
[1728580951782,0.647913,60216.0,60215.0,0.002]
[1728580952188,1.746113,60216.0,60215.0,0.002]
[1728580954495,1.75889587,60216.0,60215.0,0.002]
[1728580957299,1.75889587,60216.0,60215.0,0.085114]
[1728580957494,1.75889587,60216.0,60215.0,0.002]
[1728580957694,0.69280553,60216.0,60215.0,0.002]
[1728580958403,0.3748,60216.0,60215.0,0.085114]
[1728580965708,0.3748,60216.0,60215.0,0.13473848]
[1728580966308,0.33321844,60216.0,60215.0,0.13473848]
[1728580966512,0.33321844,60216.0,60215.0,0.085114]
[1728580967310,0.33321844,60216.0,60215.0,0.15127998]
[1728580967708,0.33321844,60216.0,60215.0,0.085114]
[1728580969106,0.33321844,60216.0,60215.0,0.275114]
[1728580969512,0.33321844,60216.0,60215.0,0.47848031]
[1728580970509,0.33321844,60216.0,60215.0,0.39576594]
[1728580970810,0.33251844,60216.0,60215.0,0.39576594]
[1728580972012,0.33251844,60216.0,60215.0,0.20576594]
[1728580972604,0.45633841,60216.0,60215.0,0.085114]
[1728580972909,0.53945141,60216.0,60215.0,0.085114]
[1728580973907,0.45633841,60216.0,60215.0,0.085114]
[1728580974911,0.12381997,60216.0,60215.0,0.085114]
[1728580977024,0.03210534,60216.0,60215.0,0.085114]
[1728580977318,0.21205884,60216.0,60215.0,0.085114]
[1728580977526,0.30377614,60216.0,60215.0,0.085114]
[1728580978014,0.26307498,60216.0,60215.0,0.085114]
[1728580978216,0.12382264,60216.0,60215.0,0.085114]
[1728580978516,0.0728065,60216.0,60215.0,0.085114]
[1728580978720,0.12382264,60216.0,60215.0,0.085114]
[1728580979719,0.1799535,60217.0,60216.0,0.083113]
[1728580979910,0.1799535,60217.0,60216.0,0.20386736]
[1728580980918,0.1799535,60217.0,60216.0,0.20387121]
[1728580981425,0.55164,60223.0,60216.0,0.12175821]
[1728580981772,0.083109,60219.0,60218.0,0.18271139]
[1728580981912,0.083109,60219.0,60218.0,0.20386721]
[1728580983022,0.083109,60219.0,60218.0,0.20486721]
[1728580983403,0.083105,60222.0,60218.0,0.20486721]
[1728580983609,0.36172,60223.0,60222.0,0.083105]
[1728580983836,0.083097,60228.0,60227.0,0.083096]
[1728580984008,0.4940385,60229.0,60228.0,0.083096]
[1728580984219,0.4941185,60229.0,60228.0,0.083096]
[1728580984424,0.4801,60229.0,60228.0,0.083096]
[1728580984612,0.3608,60229.0,60228.0,0.083096]
[1728580984916,0.3608,60229.0,60228.0,0.28662843]
[1728580984917,0.443895,60229.0,60228.0,0.28662843]
[1728580985120,0.3608,60229.0,60228.0,0.20461127]
[1728580985513,0.3608,60229.0,60228.0,0.28762715]
[1728580985712,0.3608,60229.0,60228.0,0.28858799]
[1728580985918,0.3608,60229.0,60228.0,0.16811188]
[1728580986418,0.1194,60231.0,60228.0,0.20551656]
[1728580986722,0.1194,60231.0,60230.0,0.083093]
[1728580987222,0.1194,60231.0,60230.0,0.28646965]
[1728580987518,0.1194,60231.0,60230.0,0.16610826]
[1728580987720,0.28559667,60231.0,60230.0,0.083093]
[1728580987907,0.38588949,60231.0,60230.0,0.083093]
[1728580988623,0.38588949,60231.0,60230.0,0.084093]
[1728580989322,0.38588949,60231.0,60230.0,0.085093]
[1728580989510,0.30279749,60231.0,60230.0,0.085093]
[1728580990114,0.38588949,60231.0,60230.0,0.085093]
[1728580990313,0.38588949,60231.0,60230.0,0.002]
[1728580990614,0.083101,60227.0,60226.0,0.083098]
[1728580990815,0.083102,60226.0,60225.0,0.083099]
[1728580991021,0.16620667,60226.0,60225.0,0.083099]
[1728580991215,0.12379759,60226.0,60215.0,0.19]
[1728580991427,0.3608,60220.0,60216.0,0.083113]
[1728580991723,0.3608,60220.0,60219.0,0.083109]
[1728580991724,0.443907,60220.0,60219.0,0.083109]
[1728580991919,0.62733388,60220.0,60219.0,0.083109]
[1728580992814,0.18342688,60220.0,60219.0,0.083109]
[1728580993121,0.12481743,60220.0,60219.0,0.083109]
[1728580994518,0.12481743,60220.0,60219.0,0.085109]
[1728580994722,0.001,60220.0,60219.0,0.20711157]
[1728580995321,0.084107,60220.0,60219.0,0.20711157]
[1728580995826,0.274107,60220.0,60219.0,0.002]
[1728580996523,0.274107,60220.0,60219.0,0.06841486]
[1728580998024,0.274107,60220.0,60219.0,0.002]
[1728580999618,1.372267,60220.0,60219.0,0.002]
[1728581001024,1.372267,60220.0,60216.0,0.06641486]
[1728581001025,0.08311,60218.0,60216.0,0.06641486]
[1728581001222,0.443911,60217.0,60216.0,0.06641486]
[1728581001425,0.083113,60216.0,60215.0,0.14952886]
[1728581001614,0.273113,60216.0,60215.0,0.083114]
[1728581003820,0.273113,60216.0,60215.0,0.084114]
[1728581004229,0.085113,60216.0,60215.0,0.085114]
[1728581004927,0.002,60216.0,60215.0,0.085114]
[1728581005232,0.085113,60216.0,60215.0,0.085114]
[1728581005422,0.002,60216.0,60215.0,0.085114]
[1728581005618,0.085113,60216.0,60215.0,0.085114]
[1728581006019,0.09786864,60216.0,60215.0,0.085114]
[1728581009119,0.002,60216.0,60215.0,0.085114]
[1728581009629,0.002,60216.0,60215.0,0.205114]
[1728581009829,0.12582006,60216.0,60215.0,0.205114]
[1728581010044,0.14937732,60216.0,60215.0,0.205114]
[1728581010219,0.18401853,60216.0,60215.0,0.205114]
[1728581010420,0.07480498,60216.0,60215.0,0.205114]
[1728581011029,0.13100345,60218.0,60215.0,0.205114]
[1728581011236,0.1639922,60221.0,60217.0,0.19]
[1728581011423,0.1639922,60222.0,60219.0,0.083109]
[1728581011621,0.1639922,60225.0,60224.0,0.083102]
[1728581011822,0.00249194,60229.0,60224.0,0.393102]
[1728581012033,0.00249194,60229.0,60228.0,0.19]
[1728581012218,0.00249194,60229.0,60228.0,0.273096]
[1728581012627,0.1639922,60234.0,60228.0,0.19]
[1728581012931,0.16375618,60234.0,60233.0,0.083089]
[1728581013233,0.083088,60234.0,60233.0,0.083089]
[1728581013617,0.0160964,60235.0,60228.0,0.19]
[1728581013827,0.52546519,60236.0,60234.0,0.083088]
[1728581014026,0.52546519,60236.0,60225.0,0.31]
[1728581014027,0.083087,60235.0,60231.0,0.083091]
[1728581014221,0.19,60233.0,60225.0,0.5]
[1728581014427,0.13096339,60228.0,60227.0,0.083098]
[1728581014926,0.3608,60230.0,60225.0,0.31088]
[1728581015157,0.13094525,60227.0,60226.0,0.083099]
[1728581015332,0.13094525,60228.0,60227.0,0.083098]
[1728581015529,0.13094525,60229.0,60228.0,0.083096]
[1728581015729,0.13094525,60229.0,60225.0,0.311]
[1728581015730,0.3608,60230.0,60229.0,0.083095]
[1728581017325,0.3608,60230.0,60229.0,0.084095]
[1728581018024,0.3608,60230.0,60229.0,0.085095]
[1728581020638,0.5508,60230.0,60229.0,0.085095]
[1728581020838,0.633893,60230.0,60229.0,0.085095]
[1728581021334,0.5508,60230.0,60229.0,0.085095]
[1728581024225,0.3608,60230.0,60229.0,0.085095]
[1728581024935,0.51209677,60230.0,60229.0,0.085095]
[1728581028232,0.45249761,60230.0,60229.0,0.275095]
[1728581028733,0.5120946,60230.0,60229.0,0.275095]
[1728581028934,0.45249761,60230.0,60229.0,0.275095]
[1728581029937,0.40149242,60230.0,60229.0,0.275095]
[1728581030335,0.70208903,60230.0,60229.0,0.085095]
[1728581031131,0.78518203,60230.0,60229.0,0.085095]
[1728581031332,0.78518203,60230.0,60229.0,0.002]
[1728581031535,0.78518203,60230.0,60229.0,0.00146333]
[1728581031837,0.633893,60230.0,60229.0,0.00146333]
[1728581033143,0.761093,60230.0,60229.0,0.00146333]
[1728581035748,0.761093,60230.0,60229.0,0.08455833]
[1728581036641,0.633893,60230.0,60229.0,0.08455833]
[1728581036840,0.633893,60230.0,60229.0,0.27455833]
[1728581036841,0.3608,60230.0,60229.0,0.27455833]
[1728581037442,0.3608,60230.0,60229.0,0.34097319]
[1728581038144,0.3608,60230.0,60229.0,0.08455833]
[1728581038339,0.083089,60234.0,60229.0,0.00146333]
[1728581038543,0.207284,60237.0,60231.0,0.25641486]
[1728581039063,0.22350741,60237.0,60232.0,0.06641486]
[1728581039545,0.22350741,60237.0,60233.0,0.06641486]
[1728581039740,0.14042341,60237.0,60236.0,0.083085]
[1728581039939,0.1242,60237.0,60236.0,0.083085]
[1728581040751,0.1242,60237.0,60236.0,0.16610316]
[1728581040946,0.1242,60237.0,60236.0,0.16710316]
[1728581042359,0.1242,60237.0,60236.0,0.084085]
[1728581042763,0.3142,60237.0,60236.0,0.084085]
[1728581042959,0.3142,60237.0,60236.0,0.085085]
[1728581043266,0.397284,60237.0,60236.0,0.085085]
[1728581044866,0.3608,60238.0,60237.0,0.083084]
[1728581045063,0.443882,60238.0,60237.0,0.083084]
[1728581045663,0.3608,60238.0,60237.0,0.083084]
[1728581045872,0.443882,60238.0,60237.0,0.083084]
[1728581046056,0.443882,60238.0,60237.0,0.084084]
[1728581046564,0.633882,60238.0,60237.0,0.002]
[1728581046973,0.7255786,60238.0,60237.0,0.002]
[1728581047265,1.8236186,60238.0,60237.0,0.002]
[1728581048758,1.9336186,60238.0,60237.0,0.002]
[1728581049672,1.3336186,60238.0,60237.0,0.002]
[1728581050168,0.083102,60224.0,60219.0,0.3608]
[1728581050469,0.083102,60224.0,60203.0,0.083131]
[1728581050470,0.083114,60218.0,60217.0,0.08311]
[1728581050764,0.19,60220.0,60205.0,0.3608]
[1728581050765,0.083117,60215.0,60214.0,0.083115]
[1728581050967,0.74873721,60215.0,60214.0,0.083115]
[1728581051166,0.78943855,60215.0,60214.0,0.083115]
[1728581051366,0.633917,60215.0,60214.0,0.083115]
[1728581051563,0.66562021,60215.0,60214.0,0.083115]
[1728581051777,0.74873421,60215.0,60214.0,0.083115]
[1728581052071,0.633914,60215.0,60214.0,0.083115]
[1728581052459,0.11482021,60217.0,60214.0,1.181315]
[1728581052659,0.13125185,60221.0,60216.0,0.19]
[1728581052660,0.11482021,60221.0,60216.0,0.19]
[1728581052866,0.11482021,60221.0,60214.0,0.083115]
[1728581052867,0.47562021,60222.0,60221.0,0.083106]
[1728581053270,0.3608,60222.0,60221.0,0.083106]
[1728581053578,0.47562021,60222.0,60221.0,0.083106]
[1728581054067,0.47562021,60222.0,60221.0,0.084106]
[1728581054273,0.3608,60222.0,60221.0,0.084106]
[1728581054873,0.31922132,60222.0,60221.0,0.20790632]
[1728581055171,0.32022132,60222.0,60221.0,0.20890632]
[1728581055574,0.001,60222.0,60221.0,0.20890632]
[1728581055973,0.3608,60228.0,60221.0,0.20890632]
[1728581056171,0.3608,60228.0,60227.0,0.083098]
[1728581059271,0.3608,60228.0,60227.0,0.15142224]
[1728581059573,0.3608,60228.0,60227.0,0.085098]
[1728581060022,0.207783,60238.0,60227.0,0.085098]
[1728581060023,0.36164,60239.0,60227.0,1.54382223]
[1728581060180,0.3608,60239.0,60238.0,0.273082]
[1728581062679,0.3608,60239.0,60238.0,0.274082]
[1728581062880,0.3608,60239.0,60238.0,0.275082]
[1728581063075,0.3608,60239.0,60238.0,0.274082]
[1728581063386,0.3608,60239.0,60238.0,0.275082]
[1728581067195,0.443863,60253.0,60249.0,0.083067]
[1728581067485,0.3608,60253.0,60252.0,0.083063]
[1728581067870,0.3608,60253.0,60249.0,0.273067]
[1728581067871,0.083057,60257.0,60256.0,0.083058]
[1728581069398,0.083057,60257.0,60256.0,0.084058]
[1728581069783,0.083057,60257.0,60256.0,0.085058]
[1728581072385,0.01647781,60259.0,60258.0,0.083055]
[1728581072579,0.083053,60259.0,60258.0,0.083055]
[1728581073982,0.083053,60259.0,60258.0,0.084055]
[1728581074787,0.083053,60259.0,60258.0,0.085055]
[1728581078490,0.083053,60259.0,60258.0,0.002]
[1728581079289,0.083053,60259.0,60258.0,0.085055]
[1728581083189,0.11513907,60259.0,60258.0,0.085055]
[1728581083390,0.11513909,60259.0,60258.0,0.085055]
[1728581083594,0.083053,60259.0,60258.0,0.085055]
[1728581084091,0.11513871,60259.0,60258.0,0.085055]
[1728581085098,0.083053,60259.0,60258.0,0.085055]
[1728581090399,0.083053,60259.0,60258.0,0.002]
[1728581090886,0.083053,60259.0,60258.0,0.001]
[1728581091092,0.083053,60259.0,60258.0,0.002]
[1728581097300,0.083053,60259.0,60258.0,0.085055]
[1728581097809,0.01623013,60260.0,60259.0,0.083053]
[1728581097810,0.09928213,60260.0,60259.0,0.083053]
[1728581097995,0.083052,60260.0,60259.0,0.083053]
[1728581099094,0.083052,60260.0,60259.0,0.084053]
[1728581100104,0.20679804,60260.0,60259.0,0.085053]
[1728581100894,0.20679804,60260.0,60248.0,0.444968]
[1728581100895,0.18332115,60260.0,60248.0,0.444968]
[1728581101095,0.18067395,60253.0,60250.0,0.083063]
[1728581101297,0.26373895,60251.0,60250.0,0.083063]
[1728581101500,0.26638615,60251.0,60250.0,0.083063]
[1728581102014,0.20681104,60251.0,60250.0,0.083063]
[1728581102394,0.20681104,60251.0,60248.0,0.3619]
[1728581102395,0.083067,60249.0,60248.0,0.083068]
[1728581102702,0.15582846,60249.0,60248.0,0.083068]
[1728581102900,0.26639424,60249.0,60248.0,0.084068]
[1728581103211,0.25780936,60249.0,60248.0,0.084068]
[1728581103400,0.26640408,60249.0,60248.0,0.084068]
[1728581103602,0.21274078,60249.0,60248.0,0.084068]
[1728581103856,0.21274078,60249.0,60248.0,0.085068]
[1728581103857,0.26473065,60249.0,60248.0,0.085068]
[1728581104099,0.27258354,60249.0,60248.0,0.085068]
[1728581104501,0.12475888,60249.0,60248.0,0.275068]